[Event "ESTCC 65 2019"]
[Site "Mali Losinj"]
[Date "2019.09.23"]
[Round "6.2"]
[White "Becker, Norbert"]
[Black "Kalegin, Evgenij"]
[Result "0-1"]
[ECO "A48"]
[WhiteElo "2131"]
[BlackElo "2435"]
[Annotator "ChessBase"]
[PlyCount "140"]
[EventDate "2019.09.18"]
[EventType "team-tourn"]
[EventCountry "CRO"]
[SourceTitle "playchess.com"]
[Source "ChessBase"]
[SourceQuality "1"]
[WhiteTeam "Germany"]
[BlackTeam "Russia"]
[WhiteTeamCountry "GER"]
[BlackTeamCountry "RUS"]
[TimeControl "40/5400+30:1800+30"]

1. d4 {[%emt 0:00:30]} Nf6 {[%emt 0:00:30]} 2. Nf3 {[%emt 0:00:30]} g6 {[%emt 0:00:00]} 3. Bf4 {[%emt 0:00:30]} Bg7 {[%emt 0:00:00]} 4. e3 {[%emt 0:00:30]} O-O {[%emt 0:02:30]} 5. h3 {[%emt 0:02:30]} c5 {[%emt 0:04:30]} 6. c3 {[%emt 0:00:30]} b6 {[%emt 0:00:30]} 7. Nbd2 {[%emt 0:00:30]} Bb7 {[%emt 0:00:00]} 8. Be2 {[%emt 0:02:30]} d6 {[%emt 0:00:00]} 9. O-O {[%emt 0:00:30]} Nbd7 {[%emt 0:00:30]} 10. a4 {[%emt 0:01:30]} a6 {[%emt 0:00:30]} 11. Qc2 {[%emt 0:02:30]} Qc7 {[%emt 0:00:30]} 12. Rfd1 {[%emt 0:02:30]} cxd4 {[%emt 0:05:30]} 13. exd4 {[%emt 0:00:30]} e5 {[%emt 0:00:30]} 14. dxe5 {[%emt 0:03:30]} dxe5 {[%emt 0:00:30]} 15. Bh2 {[%emt 0:00:30]} Rad8 {[%emt 0:06:30]} 16. Qb3 {[%emt 0:13:30]} Nh5 {[%emt 0:07:30]} 17. Qc4 {[%emt 0:04:30]} Qb8 {[%emt 0:01:30]} 18. Ng5 {[%emt 0:03:30]} Nf4 {[%emt 0:01:30]} 19. Bf3 {[%emt 0:05:30]} Rc8 {[%emt 0:05:30]} 20. Qf1 {[%emt 0:08:30]} Nc5 {[%emt 0:09:30]} 21. Bxf4 {[%emt 0:04:30]} exf4 {[%emt 0:00:30]} 22. Bxb7 {[%emt 0:04:30]} Qxb7 {[%emt 0:00:30]} 23. Nc4 {[%emt 0:05:30]} Qc7 {[%emt 0:07:30]} 24. Nd6 {[%emt 0:07:30]} Rcd8 {[%emt 0:01:30]} 25. Ndxf7 {[%emt 0:01:30]} Rxd1 {[%emt 0:07:30]} 26. Rxd1 {[%emt 0:00:30]} Rxf7 {[%emt 0:01:30]} 27. Qc4 {[%emt 0:02:30]} h6 {[%emt 0:02:30]} 28. Nxf7 {[%emt 0:04:51]} Qxf7 {[%emt 0:00:00]} 29. Rd8+ {[%emt 0:00:39]} Bf8 {[%emt 0:00:00]} 30. Qxf7+ {[%emt 0:07:43]} Kxf7 {[%emt 0:00:00]} 31. Ra8 {[%emt 0:00:22]} a5 {[%emt 0:04:00]} 32. b4 {[%emt 0:00:46]} Nxa4 {[%emt 0:00:30]} 33. bxa5 {[%emt 0:00:16]} bxa5 {[%emt 0:00:00]} 34. Rxa5 {[%emt 0:00:35]} Nxc3 {[%emt 0:00:00]} 35. Ra6 {[%emt 0:01:26]} Ne2+ {[%emt 0:02:30]} 36. Kf1 {[%emt 0:00:24]} Nd4 {[%emt 0:00:30]} 37. Ra4 {[%emt 0:02:42]} Bg7 {[%emt 0:00:30]} 38. Ra6 {[%emt 0:01:14]} g5 {[%emt 0:00:30]} 39. f3 {[%emt 0:06:01]} Nf5 {[%emt 0:00:30]} 40. Kg1 {[%emt 0:00:53]} Bd4+ {[%emt 0:00:00]} 41. Kh2 {[%emt 0:01:08]} Bf2 {[%emt 0:04:00]} 42. Rc6 {[%emt 0:01:30]} Ke7 {[%emt 0:00:30]} 43. Ra6 {[%emt 0:00:30]} Nd6 {[%emt 0:05:30]} 44. Ra8 {[%emt 0:02:30]} Ke6 {[%emt 0:00:30]} 45. Ra5 {[%emt 0:01:30]} Bd4 {[%emt 0:05:30]} 46. Kh1 {[%emt 0:01:30]} Bc3 {[%emt 0:05:30]} 47. Ra3 {[%emt 0:00:30]} Bb4 {[%emt 0:00:30]} 48. Ra4 {[%emt 0:01:30]} Bc5 {[%emt 0:00:30]} 49. Ra8 {[%emt 0:01:30]} Nf5 {[%emt 0:01:30]} 50. Ra5 {[%emt 0:01:30]} Kd5 {[%emt 0:00:30]} 51. Ra4 {[%emt 0:00:30]} Kc6 {[%emt 0:06:30]} 52. Kh2 {[%emt 0:01:30]} Kb5 {[%emt 0:02:30]} 53. Re4 {[%emt 0:01:30]} Bd4 {[%emt 0:00:30]} 54. Re8 {[%emt 0:00:30]} Kc4 {[%emt 0:01:30]} 55. Rf8 {[%emt 0:01:14]} Nh4 {[%emt 0:00:30]} 56. Rf7 {[%emt 0:01:39]} Kd3 {[%emt 0:00:30]} 57. Re7 {[%emt 0:00:29]} Bf2 {[%emt 0:06:30]} 58. Rh7 {[%emt 0:02:04]} Ke2 {[%emt 0:01:30]} 59. Rxh6 {[%emt 0:00:31]} Kf1 {[%emt 0:02:30]} 60. Rh5 {[%emt 0:00:28]} Bg3+ {[%emt 0:02:30]} 61. Kh1 {[%emt 0:00:09]} Nxg2 {[%emt 0:00:30]} 62. Rxg5 {[%emt 0:00:19]} Nh4 {[%emt 0:00:30]} 63. Ra5 {[%emt 0:04:21]} Nxf3 {[%emt 0:00:00]} 64. Ra4 {[%emt 0:01:44]} Ne5 {[%emt 0:07:11]} 65. h4 {[%emt 0:03:44]} Ng4 {[%emt 0:02:14]} 66. Ra1+ {[%emt 0:00:29]} Be1 {[%emt 0:01:02]} 67. Ra4 {[%emt 0:01:38]} Bd2 {[%emt 0:03:58]} 68. h5 {[%emt 0:03:02]} Ke2 {[%emt 0:00:08]} 69. Re4+ {[%emt 0:03:20]} Be3 {[%emt 0:00:21]} 70. h6 {[%emt 0:02:07]} Nf2+ {[%emt 0:00:07]} 0-1

[Event "ESTCC 65 2019"]
[Site "Mali Losinj"]
[Date "2019.09.23"]
[Round "6.4"]
[White "Thoele, Wolfgang"]
[Black "Pushkov, Nikolai"]
[Result "1/2-1/2"]
[ECO "C01"]
[WhiteElo "1865"]
[BlackElo "2261"]
[Annotator "NA"]
[PlyCount "99"]
[EventDate "2019.09.18"]
[EventType "team-tourn"]
[EventCountry "CRO"]
[SourceTitle "playchess.com"]
[Source "ChessBase"]
[SourceQuality "1"]
[WhiteTeam "Germany"]
[BlackTeam "Russia"]
[WhiteTeamCountry "GER"]
[BlackTeamCountry "RUS"]
[TimeControl "40/5400+30:1800+30"]

1. e4 {[%emt 0:00:30]} e6 {[%emt 0:00:30]} 2. d4 {[%emt 0:00:00]} d5 {[%emt 0:00:00]} 3. exd5 {[%emt 0:00:00]} exd5 {[%emt 0:00:00]} 4. Nf3 {[%emt 0:00:30]} Nf6 {[%emt 0:00:30]} 5. Bg5 {[%emt 0:00:30]} Be7 {[%emt 0:00:00]} 6. Be2 {[%emt 0:00:30]} Bf5 {[%emt 0:02:00]} 7. O-O {[%emt 0:01:30]} O-O {[%emt 0:00:00]} 8. Nbd2 {[%emt 0:00:30]} Nbd7 {[%emt 0:02:00]} 9. Re1 {[%emt 0:00:30]} Re8 {[%emt 0:00:30]} 10. Nf1 {[%emt 0:01:30]} h6 {[%emt 0:00:30]} 11. Bxf6 {[%emt 0:04:30]} Bxf6 {[%emt 0:00:30]} 12. Ne3 {[%emt 0:00:30]} Be4 {[%emt 0:02:30]} 13. c3 {[%emt 0:01:30]} c6 {[%emt 0:01:30]} 14. Bd3 {[%emt 0:00:30]} g6 {[%emt 0:00:30]} 15. Bxe4 {[%emt 0:01:30]} Rxe4 {[%emt 0:05:30]} 16. Nd2 {[%emt 0:01:30]} Re8 {[%emt 0:05:30]} 17. Qc2 {[%emt 0:05:30]} h5 {[%emt 0:03:30]} 18. Nef1 {[%emt 0:02:30]} Qb6 {[%emt 0:01:30]} 19. Nf3 {[%emt 0:00:30]} Nf8 {[%emt 0:07:30]} 20. Rxe8 {[%emt 0:03:30]} Rxe8 {[%emt 0:00:30]} 21. Re1 {[%emt 0:00:30]} Rd8 {[%emt 0:00:30]} 22. N1d2 {[%emt 0:03:30]} Kg7 {[%emt 0:01:30]} 23. g3 {[%emt 0:06:30]} Ne6 {[%emt 0:01:30]} 24. b4 {[%emt 0:09:30]} a5 {[%emt 0:03:30]} 25. a3 {[%emt 0:01:30]} axb4 {[%emt 0:04:30]} 26. axb4 {[%emt 0:00:30]} Qa6 {[%emt 0:01:30]} 27. Ne5 {[%emt 0:02:30]} Bxe5 {[%emt 0:04:30]} 28. Rxe5 {[%emt 0:00:30]} Qa1+ {[%emt 0:00:30]} 29. Kg2 {[%emt 0:00:30]} Ra8 {[%emt 0:01:30]} 30. Nb3 {[%emt 0:05:30]} Qa4 {[%emt 0:04:30]} 31. Re1 {[%emt 0:01:30]} Qb5 {[%emt 0:00:00]} 32. Nc5 {[%emt 0:05:30]} Nxc5 {[%emt 0:01:00]} 33. bxc5 {[%emt 0:00:30]} Ra3 {[%emt 0:05:30]} 34. Qd2 {[%emt 0:04:30]} Qa5 {[%emt 0:01:30]} 35. Rc1 {[%emt 0:00:30]} b6 {[%emt 0:02:30]} 36. cxb6 {[%emt 0:01:30]} Qxb6 {[%emt 0:00:30]} 37. Qe3 {[%emt 0:00:30]} Qc7 {[%emt 0:00:30]} 38. Qe8 {[%emt 0:02:30]} Qd6 {[%emt 0:01:30]} 39. Qe3 {[%emt 0:05:30]} Qe6 {[%emt 0:02:30]} 40. Re1 {[%emt 0:01:30]} Qf5 {[%emt 0:01:30]} 41. Qd2 {[%emt 0:32:30]} Qf6 {[%emt 0:34:30]} 42. Re3 {[%emt 0:00:30]} Ra1 {[%emt 0:01:30]} 43. Qb2 {[%emt 0:00:30]} Ra7 {[%emt 0:02:30]} 44. Qb6 {[%emt 0:05:57]} Ra2 {[%emt 0:01:30]} 45. Rf3 {[%emt 0:00:03]} Qe6 {[%emt 0:00:00]} 46. Qb7 {[%emt 0:00:30]} Re2 {[%emt 0:01:00]} 47. h4 {[%emt 0:11:43]} Re1 {[%emt 0:03:30]} 48. Qc7 {[%emt 0:02:12]} Re4 {[%emt 0:00:30]} 49. Rf4 {[%emt 0:02:27]} Re1 {[%emt 0:02:30]} 50. Rf3 {[%emt 0:00:25]} 1/2-1/2

[Event "ESTCC 65 2019"]
[Site "Mali Losinj"]
[Date "2019.09.23"]
[Round "6.5"]
[White "Rantanen, Yrjo A."]
[Black "Werner, Clemens"]
[Result "1-0"]
[ECO "B14"]
[WhiteElo "2309"]
[BlackElo "2286"]
[Annotator "NA"]
[PlyCount "53"]
[EventDate "2019.09.18"]
[EventType "team-tourn"]
[EventCountry "CRO"]
[SourceTitle "playchess.com"]
[Source "ChessBase"]
[SourceQuality "1"]
[WhiteTeam "Finland"]
[BlackTeam "Germany"]
[WhiteTeamCountry "FIN"]
[BlackTeamCountry "GER"]
[TimeControl "40/5400+30:1800+30"]

1. e4 {[%emt 0:00:30]} c6 {[%emt 0:00:30]} 2. d4 {[%emt 0:00:00]} d5 {[%emt 0:00:00]} 3. exd5 {[%emt 0:00:00]} cxd5 {[%emt 0:00:00]} 4. c4 {[%emt 0:00:00]} Nf6 {[%emt 0:00:30]} 5. Nc3 {[%emt 0:00:00]} g6 {[%emt 0:00:00]} 6. cxd5 {[%emt 0:00:30]} Nxd5 {[%emt 0:00:00]} 7. Qb3 {[%emt 0:00:30]} Nb6 {[%emt 0:00:30]} 8. Nf3 {[%emt 0:02:30]} Bg7 {[%emt 0:02:30]} 9. Bb5+ {[%emt 0:00:30]} N8d7 {[%emt 0:04:30]} 10. a4 {[%emt 0:04:30]} a6 {[%emt 0:03:30]} 11. Be2 {[%emt 0:02:30]} a5 {[%emt 0:01:30]} 12. Bf4 {[%emt 0:07:30]} O-O {[%emt 0:07:30]} 13. Nb5 {[%emt 0:01:30]} Nf6 {[%emt 0:01:30]} 14. Bc7 {[%emt 0:13:30]} Qd5 {[%emt 0:00:30]} 15. Qe3 {[%emt 0:13:30]} Qc6 {[%emt 0:14:30]} 16. Rc1 {[%emt 0:16:30]} Nbd5 {[%emt 0:00:30]} 17. Rxc6 {[%emt 0:01:30]} Nxe3 {[%emt 0:00:30]} 18. Rxf6 {[%emt 0:00:30]} Nxg2+ {[%emt 0:07:30]} 19. Kf1 {[%emt 0:00:30]} Bxf6 {[%emt 0:02:30]} 20. Kxg2 {[%emt 0:00:30]} Bf5 {[%emt 0:02:30]} 21. Nd2 {[%emt 0:04:30]} Bc2 {[%emt 0:02:30]} 22. b3 {[%emt 0:01:30]} Ra6 {[%emt 0:14:30]} 23. Bf3 {[%emt 0:03:30]} Bg5 {[%emt 0:02:30]} 24. Bxb7 {[%emt 0:02:30]} Re6 {[%emt 0:02:30]} 25. Nf3 {[%emt 0:00:30]} Bh6 {[%emt 0:01:30]} 26. Bd5 {[%emt 0:01:30]} Ra6 {[%emt 0:00:30]} 27. Re1 {[%emt 0:00:30]} 1-0

[Event "ESTCC 65 2019"]
[Site "Mali Losinj"]
[Date "2019.09.23"]
[Round "6.6"]
[White "Kierzek, Matthias"]
[Black "Westerinen, Heikki M.J."]
[Result "1/2-1/2"]
[ECO "A75"]
[WhiteElo "2186"]
[BlackElo "2296"]
[Annotator "NA"]
[PlyCount "52"]
[EventDate "2019.09.18"]
[EventType "team-tourn"]
[EventCountry "CRO"]
[SourceTitle "playchess.com"]
[Source "ChessBase"]
[SourceQuality "1"]
[WhiteTeam "Germany"]
[BlackTeam "Finland"]
[WhiteTeamCountry "GER"]
[BlackTeamCountry "FIN"]
[TimeControl "40/5400+30:1800+30"]

1. d4 {[%emt 0:00:30]} Nf6 {[%emt 0:00:30]} 2. c4 {[%emt 0:00:00]} g6 {[%emt 0:00:30]} 3. Nc3 {[%emt 0:00:00]} Bg7 {[%emt 0:00:30]} 4. e4 {[%emt 0:00:00]} d6 {[%emt 0:00:30]} 5. Be2 {[%emt 0:00:00]} O-O {[%emt 0:01:30]} 6. Bg5 {[%emt 0:00:30]} c5 {[%emt 0:07:30]} 7. d5 {[%emt 0:00:30]} e6 {[%emt 0:03:30]} 8. Nf3 {[%emt 0:00:30]} exd5 {[%emt 0:00:30]} 9. cxd5 {[%emt 0:00:30]} Bg4 {[%emt 0:13:30]} 10. O-O {[%emt 0:06:30]} Nbd7 {[%emt 0:04:30]} 11. Nd2 {[%emt 0:02:30]} Bxe2 {[%emt 0:00:30]} 12. Qxe2 {[%emt 0:00:00]} a6 {[%emt 0:03:30]} 13. a4 {[%emt 0:08:00]} Re8 {[%emt 0:03:30]} 14. f4 {[%emt 0:04:30]} Qc7 {[%emt 0:06:30]} 15. Qd3 {[%emt 0:21:30]} c4 {[%emt 0:06:30]} 16. Qf3 {[%emt 0:03:30]} b5 {[%emt 0:14:30]} 17. Kh1 {[%emt 0:04:30]} Rab8 {[%emt 0:11:48]} 18. axb5 {[%emt 0:06:30]} axb5 {[%emt 0:00:31]} 19. Ra6 {[%emt 0:00:30]} Rb6 {[%emt 0:01:29]} 20. Rfa1 {[%emt 0:00:30]} Nc5 {[%emt 0:05:15]} 21. Rxb6 {[%emt 0:01:30]} Qxb6 {[%emt 0:00:04]} 22. e5 {[%emt 0:01:30]} Nd3 {[%emt 0:00:58]} 23. exf6 {[%emt 0:04:30]} Nf2+ {[%emt 0:00:41]} 24. Kg1 {[%emt 0:00:30]} Ng4+ {[%emt 0:04:06]} 25. Kh1 {[%emt 0:00:00]} Nf2+ {[%emt 0:00:43]} 26. Kg1 {[%emt 0:00:00]} Ng4+ {[%emt 0:01:48]} 1/2-1/2

[Event "ESTCC 65 2019"]
[Site "Mali Losinj"]
[Date "2019.09.23"]
[Round "6.7"]
[White "Kivimaki, Jaakko"]
[Black "Herbrechtsmeier, Christof"]
[Result "1/2-1/2"]
[ECO "A48"]
[WhiteElo "2195"]
[BlackElo "2210"]
[Annotator "NA"]
[PlyCount "61"]
[EventDate "2019.09.18"]
[EventType "team-tourn"]
[EventCountry "CRO"]
[SourceTitle "playchess.com"]
[Source "ChessBase"]
[SourceQuality "1"]
[WhiteTeam "Finland"]
[BlackTeam "Germany"]
[WhiteTeamCountry "FIN"]
[BlackTeamCountry "GER"]
[TimeControl "40/5400+30:1800+30"]

1. d4 {[%emt 0:00:30]} Nf6 {[%emt 0:01:30]} 2. Nf3 {[%emt 0:00:30]} g6 {[%emt 0:00:30]} 3. e3 {[%emt 0:00:30]} Bg7 {[%emt 0:00:00]} 4. c3 {[%emt 0:00:00]} O-O {[%emt 0:00:00]} 5. Be2 {[%emt 0:00:00]} d6 {[%emt 0:00:30]} 6. b4 {[%emt 0:00:30]} Nbd7 {[%emt 0:01:30]} 7. a4 {[%emt 0:00:30]} e5 {[%emt 0:04:30]} 8. b5 {[%emt 0:00:30]} a5 {[%emt 0:01:30]} 9. bxa6 {[%emt 0:09:30]} b6 {[%emt 0:07:30]} 10. a5 {[%emt 0:00:30]} Bxa6 {[%emt 0:00:30]} 11. axb6 {[%emt 0:00:30]} Bxe2 {[%emt 0:00:30]} 12. Rxa8 {[%emt 0:00:30]} Qxa8 {[%emt 0:01:30]} 13. Qxe2 {[%emt 0:00:00]} Nxb6 {[%emt 0:06:30]} 14. O-O {[%emt 0:00:00]} Ne4 {[%emt 0:08:30]} 15. Nfd2 {[%emt 0:03:30]} Rb8 {[%emt 0:05:30]} 16. Nxe4 {[%emt 0:09:30]} Qxe4 {[%emt 0:00:30]} 17. Na3 {[%emt 0:00:30]} exd4 {[%emt 0:07:30]} 18. cxd4 {[%emt 0:00:30]} Qa8 {[%emt 0:17:30]} 19. Qc2 {[%emt 0:13:30]} c6 {[%emt 0:03:30]} 20. Nc4 {[%emt 0:01:30]} Nxc4 {[%emt 0:01:30]} 21. Qxc4 {[%emt 0:00:30]} d5 {[%emt 0:01:30]} 22. Qc2 {[%emt 0:00:30]} Bf8 {[%emt 0:01:30]} 23. Bd2 {[%emt 0:01:30]} Qb7 {[%emt 0:07:30]} 24. Rd1 {[%emt 0:08:30]} Qb3 {[%emt 0:02:00]} 25. Qxb3 {[%emt 0:00:00]} Rxb3 {[%emt 0:00:06]} 26. Kf1 {[%emt 0:00:00]} f5 {[%emt 0:03:44]} 27. Rc1 {[%emt 0:01:30]} Rb6 {[%emt 0:00:11]} 28. Ba5 {[%emt 0:00:30]} Rb5 {[%emt 0:01:14]} 29. Bc7 {[%emt 0:00:30]} c5 {[%emt 0:00:31]} 30. dxc5 {[%emt 0:00:30]} Rxc5 {[%emt 0:00:11]} 31. Rxc5 {[%emt 0:00:00]} 1/2-1/2

[Event "ESTCC 65 2019"]
[Site "Mali Losinj"]
[Date "2019.09.23"]
[Round "6.8"]
[White "Kiefer, Gerhard"]
[Black "Vinke, Dietmar"]
[Result "1-0"]
[ECO "B17"]
[WhiteElo "2227"]
[BlackElo "2129"]
[Annotator "NA"]
[PlyCount "57"]
[EventDate "2019.09.18"]
[EventType "team-tourn"]
[EventCountry "CRO"]
[SourceTitle "playchess.com"]
[Source "ChessBase"]
[SourceQuality "1"]
[WhiteTeam "Germany"]
[BlackTeam "Finland"]
[WhiteTeamCountry "GER"]
[BlackTeamCountry "FIN"]
[TimeControl "40/5400+30:1800+30"]

1. e4 {[%emt 0:00:30]} c6 {[%emt 0:00:30]} 2. d4 {[%emt 0:00:00]} d5 {[%emt 0:00:00]} 3. Nc3 {[%emt 0:00:00]} dxe4 {[%emt 0:00:00]} 4. Nxe4 {[%emt 0:00:00]} Nd7 {[%emt 0:00:00]} 5. Nf3 {[%emt 0:03:00]} Ngf6 {[%emt 0:01:00]} 6. Nxf6+ {[%emt 0:00:30]} Nxf6 {[%emt 0:00:30]} 7. Bc4 {[%emt 0:00:30]} e6 {[%emt 0:00:30]} 8. O-O {[%emt 0:00:30]} Be7 {[%emt 0:08:30]} 9. c3 {[%emt 0:05:30]} O-O {[%emt 0:00:30]} 10. Re1 {[%emt 0:12:30]} c5 {[%emt 0:25:30]} 11. Bg5 {[%emt 0:09:30]} cxd4 {[%emt 0:02:30]} 12. Nxd4 {[%emt 0:00:30]} Qa5 {[%emt 0:05:30]} 13. Bh4 {[%emt 0:04:30]} a6 {[%emt 0:27:30]} 14. Qf3 {[%emt 0:07:30]} Re8 {[%emt 0:07:36]} 15. Rad1 {[%emt 0:17:30]} Qc7 {[%emt 0:00:51]} 16. Bb3 {[%emt 0:03:30]} Bd7 {[%emt 0:01:04]} 17. Bg3 {[%emt 0:02:30]} Qb6 {[%emt 0:01:58]} 18. Be5 {[%emt 0:01:30]} Rad8 {[%emt 0:00:55]} 19. Qg3 {[%emt 0:01:30]} Qc5 {[%emt 0:01:32]} 20. Bc2 {[%emt 0:01:30]} Bc8 {[%emt 0:07:35]} 21. Rd3 {[%emt 0:03:30]} Rd5 {[%emt 0:00:58]} 22. Rde3 {[%emt 0:02:30]} Bd6 {[%emt 0:01:24]} 23. Nf5 {[%emt 0:06:16]} exf5 {[%emt 0:00:32]} 24. Bxf6 {[%emt 0:00:11]} Bxg3 {[%emt 0:00:23]} 25. Rxe8+ {[%emt 0:00:08]} Qf8 {[%emt 0:00:02]} 26. Rxf8+ {[%emt 0:00:11]} Kxf8 {[%emt 0:00:02]} 27. Be7+ {[%emt 0:00:08]} Ke8 {[%emt 0:00:21]} 28. hxg3 {[%emt 0:00:06]} Be6 {[%emt 0:00:23]} 29. Bg5 {[%emt 0:01:05]} 1-0

[Event "ESTCC 65 2019"]
[Site "Mali Losinj"]
[Date "2019.09.23"]
[Round "6.10"]
[White "Vucenovic, Dragomir"]
[Black "Wahlbom, Magnus"]
[Result "1/2-1/2"]
[ECO "A30"]
[WhiteElo "2154"]
[BlackElo "2255"]
[Annotator "NA"]
[PlyCount "67"]
[EventDate "2019.09.18"]
[EventType "team-tourn"]
[EventCountry "CRO"]
[SourceTitle "playchess.com"]
[Source "ChessBase"]
[SourceQuality "1"]
[WhiteTeam "Switzerland"]
[BlackTeam "Sweden"]
[WhiteTeamCountry "SUI"]
[BlackTeamCountry "SWE"]
[TimeControl "40/5400+30:1800+30"]

1. d4 {[%emt 0:00:30]} Nf6 {[%emt 0:00:30]} 2. Nf3 {[%emt 0:00:00]} b6 {[%emt 0:00:30]} 3. g3 {[%emt 0:01:00]} Bb7 {[%emt 0:00:30]} 4. Bg2 {[%emt 0:00:30]} e6 {[%emt 0:00:30]} 5. O-O {[%emt 0:00:00]} c5 {[%emt 0:01:30]} 6. c4 {[%emt 0:01:00]} cxd4 {[%emt 0:00:00]} 7. Qxd4 {[%emt 0:00:30]} d6 {[%emt 0:02:00]} 8. Nc3 {[%emt 0:00:30]} a6 {[%emt 0:02:30]} 9. b3 {[%emt 0:01:30]} Nbd7 {[%emt 0:04:30]} 10. Bb2 {[%emt 0:01:30]} Be7 {[%emt 0:00:30]} 11. Rfe1 {[%emt 0:07:30]} O-O {[%emt 0:02:30]} 12. Rad1 {[%emt 0:07:30]} Qc7 {[%emt 0:02:30]} 13. e4 {[%emt 0:06:30]} Rad8 {[%emt 0:11:30]} 14. h3 {[%emt 0:07:30]} Rfe8 {[%emt 0:04:30]} 15. Qe3 {[%emt 0:07:30]} Bf8 {[%emt 0:01:30]} 16. Na4 {[%emt 0:06:30]} Nxe4 {[%emt 0:04:30]} 17. Nh2 {[%emt 0:04:30]} Nec5 {[%emt 0:10:30]} 18. Nxc5 {[%emt 0:00:30]} Nxc5 {[%emt 0:01:30]} 19. Bxb7 {[%emt 0:01:30]} Qxb7 {[%emt 0:00:00]} 20. Ng4 {[%emt 0:02:30]} e5 {[%emt 0:06:00]} 21. Rd5 {[%emt 0:04:30]} b5 {[%emt 0:00:30]} 22. Qe2 {[%emt 0:02:30]} bxc4 {[%emt 0:04:30]} 23. Qxc4 {[%emt 0:00:30]} Rc8 {[%emt 0:02:30]} 24. Ne3 {[%emt 0:01:30]} Nd7 {[%emt 0:03:30]} 25. Qe2 {[%emt 0:02:30]} Nb6 {[%emt 0:10:30]} 26. Ra5 {[%emt 0:01:30]} Ra8 {[%emt 0:00:00]} 27. Rd1 {[%emt 0:00:30]} Rec8 {[%emt 0:03:00]} 28. Ba3 {[%emt 0:00:30]} Rc6 {[%emt 0:01:30]} 29. Qg4 {[%emt 0:08:30]} Re8 {[%emt 0:13:05]} 30. h4 {[%emt 0:08:08]} h6 {[%emt 0:03:50]} 31. Qe2 {[%emt 0:01:45]} Ra8 {[%emt 0:00:42]} 32. Qg4 {[%emt 0:00:37]} Re8 {[%emt 0:00:11]} 33. Qe2 {[%emt 0:00:32]} Ra8 {[%emt 0:00:10]} 34. Qg4 {[%emt 0:10:57]} 1/2-1/2

[Event "ESTCC 65 2019"]
[Site "Mali Losinj"]
[Date "2019.09.23"]
[Round "6.11"]
[White "Hammar, Bengt"]
[Black "Staechelin, Ruedi"]
[Result "1-0"]
[ECO "B01"]
[WhiteElo "2161"]
[BlackElo "2002"]
[Annotator "NA"]
[PlyCount "129"]
[EventDate "2019.09.18"]
[EventType "team-tourn"]
[EventCountry "CRO"]
[SourceTitle "playchess.com"]
[Source "ChessBase"]
[SourceQuality "1"]
[WhiteTeam "Sweden"]
[BlackTeam "Switzerland"]
[WhiteTeamCountry "SWE"]
[BlackTeamCountry "SUI"]
[TimeControl "40/5400+30:1800+30"]

1. e4 {[%emt 0:00:30]} d5 {[%emt 0:00:30]} 2. exd5 {[%emt 0:00:30]} Qxd5 {[%emt 0:00:00]} 3. Nc3 {[%emt 0:00:30]} Qd8 {[%emt 0:00:00]} 4. d4 {[%emt 0:01:30]} Nf6 {[%emt 0:00:30]} 5. Bf4 {[%emt 0:02:30]} c6 {[%emt 0:02:30]} 6. Nf3 {[%emt 0:04:30]} Bg4 {[%emt 0:00:30]} 7. Be2 {[%emt 0:00:30]} e6 {[%emt 0:01:30]} 8. h3 {[%emt 0:01:30]} Bxf3 {[%emt 0:00:30]} 9. Bxf3 {[%emt 0:00:30]} Nbd7 {[%emt 0:02:30]} 10. O-O {[%emt 0:04:30]} Be7 {[%emt 0:01:30]} 11. Ne4 {[%emt 0:15:30]} Nxe4 {[%emt 0:01:30]} 12. Bxe4 {[%emt 0:00:00]} Nf6 {[%emt 0:00:30]} 13. Bf3 {[%emt 0:00:00]} O-O {[%emt 0:00:30]} 14. c4 {[%emt 0:03:30]} Qd7 {[%emt 0:09:30]} 15. Qd2 {[%emt 0:02:30]} Rfe8 {[%emt 0:04:30]} 16. Rad1 {[%emt 0:01:30]} a6 {[%emt 0:10:30]} 17. Qc2 {[%emt 0:02:30]} Rac8 {[%emt 0:05:30]} 18. Qa4 {[%emt 0:08:30]} Red8 {[%emt 0:12:30]} 19. Be5 {[%emt 0:04:30]} h6 {[%emt 0:13:30]} 20. Rfe1 {[%emt 0:03:30]} Ra8 {[%emt 0:01:30]} 21. Qc2 {[%emt 0:05:30]} Qc8 {[%emt 0:02:30]} 22. Re3 {[%emt 0:05:30]} Nd7 {[%emt 0:00:30]} 23. Bg3 {[%emt 0:00:30]} Bf6 {[%emt 0:01:30]} 24. Qe2 {[%emt 0:03:30]} Nf8 {[%emt 0:01:30]} 25. d5 {[%emt 0:02:30]} cxd5 {[%emt 0:03:30]} 26. cxd5 {[%emt 0:00:00]} Ra7 {[%emt 0:01:30]} 27. Bg4 {[%emt 0:02:00]} b5 {[%emt 0:00:30]} 28. Red3 {[%emt 0:03:30]} Qc5 {[%emt 0:08:04]} 29. dxe6 {[%emt 0:02:30]} Rxd3 {[%emt 0:00:19]} 30. exf7+ {[%emt 0:00:30]} Rxf7 {[%emt 0:00:39]} 31. Qxd3 {[%emt 0:00:38]} Be5 {[%emt 0:06:08]} 32. Bxe5 {[%emt 0:02:48]} Qxe5 {[%emt 0:00:02]} 33. Qb3 {[%emt 0:01:24]} Qf6 {[%emt 0:01:43]} 34. Bf3 {[%emt 0:01:46]} Kh8 {[%emt 0:00:27]} 35. Re1 {[%emt 0:02:14]} Rc7 {[%emt 0:03:01]} 36. Bd5 {[%emt 0:03:34]} Qd8 {[%emt 0:02:24]} 37. Qf3 {[%emt 0:01:30]} Nd7 {[%emt 0:02:04]} 38. b4 {[%emt 0:02:33]} Nf6 {[%emt 0:00:09]} 39. Bb3 {[%emt 0:00:42]} Qc8 {[%emt 0:01:12]} 40. Qf4 {[%emt 0:01:43]} Qd8 {[%emt 0:01:04]} 41. Re6 {[%emt 0:01:38]} Ra7 {[%emt 0:04:44]} 42. Qe5 {[%emt 0:01:30]} Ra8 {[%emt 0:00:30]} 43. Qd6 {[%emt 0:04:30]} Qxd6 {[%emt 0:03:30]} 44. Rxd6 {[%emt 0:00:30]} Kh7 {[%emt 0:01:30]} 45. Bc2+ {[%emt 0:01:30]} Kg8 {[%emt 0:00:00]} 46. Bg6 {[%emt 0:00:30]} Kf8 {[%emt 0:00:00]} 47. a3 {[%emt 0:01:30]} Ke7 {[%emt 0:00:30]} 48. Rb6 {[%emt 0:00:30]} Ra7 {[%emt 0:00:30]} 49. Bf5 {[%emt 0:02:30]} Nd5 {[%emt 0:02:30]} 50. Re6+ {[%emt 0:00:30]} Kf7 {[%emt 0:00:00]} 51. Rd6 {[%emt 0:01:30]} Nf6 {[%emt 0:01:00]} 52. Bc8 {[%emt 0:02:30]} a5 {[%emt 0:00:30]} 53. Rb6 {[%emt 0:00:30]} axb4 {[%emt 0:00:30]} 54. axb4 {[%emt 0:00:30]} Ra1+ {[%emt 0:02:30]} 55. Kh2 {[%emt 0:00:30]} Rc1 {[%emt 0:00:30]} 56. Bf5 {[%emt 0:00:30]} Rd1 {[%emt 0:02:25]} 57. Rb7+ {[%emt 0:00:30]} Kf8 {[%emt 0:00:40]} 58. Rxb5 {[%emt 0:00:30]} Rd2 {[%emt 0:04:54]} 59. Kg3 {[%emt 0:00:30]} Rb2 {[%emt 0:00:19]} 60. Rb8+ {[%emt 0:00:30]} Ke7 {[%emt 0:00:16]} 61. Rb7+ {[%emt 0:00:30]} Kd6 {[%emt 0:00:24]} 62. Bg6 {[%emt 0:07:00]} Kc6 {[%emt 0:02:58]} 63. Rxg7 {[%emt 0:00:17]} Rxb4 {[%emt 0:00:55]} 64. Rf7 {[%emt 0:00:51]} Rb3+ {[%emt 0:01:22]} 65. f3 {[%emt 0:00:24]} 1-0